fUST/lending_fUST_20251230
["ID","MTS","AMOUNT","RATE_DAILY","PERIOD"]
[400042910,1767048649615,-2723.66,0.000301,2]
[400042911,1767048649624,-716.70115333,0.00030127,30]
[400042912,1767048649634,-1150.0,0.00030137,5]
[400042913,1767048649643,-650.0,0.00030137,5]
[400042914,1767048649652,-650.0,0.00030137,5]
[400042915,1767048649661,-1619.79,0.000302,14]
[400042916,1767048649670,-2723.66,0.000302,2]
[400042917,1767048649681,-2723.66,0.000302,2]
[400042918,1767048649690,-1000.0,0.00030274,5]
[400042919,1767048649700,-200.0,0.000303,120]
[400042920,1767048649709,-2723.66,0.000303,2]
[400042921,1767048649719,-247.4,0.00030366,4]
[400042922,1767048649729,-2723.66,0.000304,2]
[400042923,1767048649740,-2723.66,0.000304,2]
[400042924,1767048649750,-15277.58765547,0.00030475,2]
[400042925,1767048649760,-2723.66,0.000305,2]
[400042926,1767048649770,-2723.66,0.000305,2]
[400042927,1767048649779,-1500.0,0.00030548,5]
[400042928,1767048649788,-2723.66,0.000306,2]
[400042929,1767048649797,-2723.66,0.000306,2]
[400042930,1767048649887,-1000.0,0.00030625,14]
[400042931,1767048649898,-716.70115333,0.00030666,30]
[400042932,1767048649910,-687.47074012,0.00030685,5]
[400042933,1767048649921,-750.0,0.00030685,5]
[400042934,1767048649931,-750.0,0.00030685,5]
[400042935,1767048649940,-11370.66,0.000307,2]
[400042936,1767048649951,-2723.66,0.000307,2]
[400042937,1767048649960,-2723.66,0.000308,2]
[400042938,1767048649971,-2723.66,0.000308,2]
[400042939,1767048649980,-732.72792841,0.00030822,5]
[400042940,1767048649989,-500.0,0.00030856,14]
[400042941,1767048650000,-2455.27497222,0.0003087,2]
[400042942,1767048650009,-1146.72,0.000309,7]
[400042943,1767048650018,-2723.66,0.000309,2]
[400042944,1767048650033,-2723.66,0.000309,2]
[400042945,1767048650043,-1655.77,0.00030958,30]
[400042946,1767048650054,-648.70423219,0.00030996,2]
[400042947,1767048650065,-1153.25196833,0.00030996,2]
[400042948,1767048650076,-614.06371645,0.00030996,2]
[400042949,1767048650085,-1105.31468961,0.00030996,2]
[400042950,1767048650095,-1965.00389263,0.00030996,2]
[400042951,1767048650104,-3070.31858224,0.00030996,2]
[400042952,1767048650113,-4421.25875843,0.00030996,2]
[400042953,1767048650123,-177.22426433,0.00030996,2]
[400042954,1767048650132,-708.89705734,0.00030996,2]
[400042955,1767048650142,-1595.01837901,0.00030996,2]
[400042956,1767048650151,-2835.58822934,0.00030996,2]
[400042957,1767048650163,-4430.60660835,0.00030996,2]
[400042958,1767048650173,-200.0,0.00030999,10]
[400042959,1767048650182,-360.3912401,0.00030999,2]
[400042960,1767048650193,-790.37664074,0.00031,120]
[400042961,1767048650203,-303.85405542,0.00031,120]
[400042962,1767048650213,-161.90452956,0.00031,120]
[400042963,1767048650224,-188.17162423,0.00031,120]
[400042964,1767048650234,-738.34214525,0.00031,120]
[400042965,1767048650244,-398.37917181,0.00031,120]
[400042966,1767048650255,-722.78806096,0.00031,120]
[400042967,1767048650264,-173.58710456,0.00031,120]
[400042968,1767048650274,-160.82945374,0.00031,120]
[400042969,1767048650283,-635.64130618,0.00031,120]
[400042970,1767048650292,-180.65011172,0.00031,120]
[400042971,1767048650301,-846.86999935,0.00031,120]
[400042972,1767048650310,-118519.4306648,0.00031,120]
[400042973,1767048650319,-1984.534635,0.00031,9]
[400042974,1767048650328,-1017.0,0.00031,7]
[400042975,1767048650337,-2723.66,0.00031,2]
[400042976,1767048650346,-2723.66,0.000311,2]
[400042977,1767048650355,-2723.66,0.000311,2]
[400042978,1767048650364,-2723.66,0.000312,2]
[400042979,1767048650376,-2723.66,0.000312,2]
[400042980,1767048650385,-151.0,0.000312,31]
[400042981,1767048650395,-151.0,0.000312,31]
[400042982,1767048650405,-151.0,0.000312,31]
[400042983,1767048650415,-151.0,0.000312,31]
[400042984,1767048650426,-151.0,0.000312,31]
[400042985,1767048650436,-716.70115333,0.00031204,30]
[400042986,1767048650446,-164.29150379,0.00031233,5]
[400042987,1767048650459,-850.0,0.00031233,5]
[400042988,1767048650468,-1000.0,0.0003125,14]
[400042989,1767048650479,-2723.66,0.000313,2]
[400042990,1767048650488,-5000.0,0.0003135,4]
[400042991,1767048650499,-200.0,0.000314,120]
[400042992,1767048650508,-2723.66,0.000314,2]
[400042993,1767048650518,-2723.66,0.000314,2]
[400042994,1767048650527,-247.4,0.00031401,4]
[400042995,1767048650539,-4057.68057094,0.00031464,2]
[400042996,1767048650548,-500.0,0.000315,5]
[400042997,1767048650558,-500.0,0.000315,5]
[400042998,1767048650567,-500.0,0.000315,5]
[400042999,1767048650577,-500.0,0.000315,5]
[400043000,1767048650587,-500.0,0.000315,30]
[400043001,1767048650596,-500.0,0.000315,5]
[400043002,1767048650605,-500.0,0.000315,30]
[400043003,1767048650615,-500.0,0.000315,5]
[400043004,1767048650625,-500.0,0.000315,5]
[400043005,1767048650635,-500.0,0.000315,30]
[400043006,1767048650645,-1000.0,0.000315,9]
[400043007,1767048650654,-500.0,0.000315,5]
[400043008,1767048650663,-500.0,0.000315,5]
[400043009,1767048650673,-515.32839191,0.000315,5]
[400043010,1767048650682,-500.0,0.000315,5]
[400043011,1767048650691,-500.0,0.000315,30]
[400043012,1767048650700,-500.0,0.000315,5]
[400043013,1767048650710,-500.0,0.000315,30]
[400043014,1767048650719,-500.0,0.000315,5]
[400043015,1767048650728,-500.0,0.000315,5]
[400043016,1767048650737,-500.0,0.000315,5]
[400043017,1767048650746,-2723.66,0.000315,2]
[400043018,1767048650755,-2723.66,0.000315,2]
[400043019,1767048650764,-500.0,0.000315,5]
[400043020,1767048650773,-500.0,0.000315,30]
[400043021,1767048650782,-500.0,0.000315,5]
[400043022,1767048650791,-500.0,0.000315,30]
[400043023,1767048650800,-5000.0,0.00031505,15]
[400043024,1767048650809,-1655.77,0.00031506,31]
[400043025,1767048650818,-482.50644681,0.00031506,120]
[400043026,1767048650826,-499.0527231,0.00031507,5]
[400043027,1767048650835,-2723.66,0.000316,2]
[400043028,1767048650843,-2723.66,0.000316,2]
[400043029,1767048650852,-2011.91929744,0.00031614,2]
[400043030,1767048650861,-2000.0,0.00031667,7]
[400043031,1767048650870,-716.70115333,0.00031743,30]
[400043032,1767048650879,-950.0,0.00031781,5]
[400043033,1767048650890,-1619.79,0.000318,14]
[400043034,1767048650899,-1000.0,0.00031875,14]
[400043035,1767048650908,-2011.91929744,0.00031884,2]
[400043036,1767048650918,-15277.58765547,0.00031886,2]
[400043037,1767048650928,-790.37664074,0.000319,120]
[400043038,1767048650938,-303.85405542,0.000319,120]
[400043039,1767048650948,-161.90452956,0.000319,120]
[400043040,1767048650957,-738.34214525,0.000319,120]
[400043041,1767048650966,-398.37917181,0.000319,120]
[400043042,1767048650975,-722.78806096,0.000319,120]
[400043043,1767048650984,-635.64130618,0.000319,120]
[400043044,1767048650993,-180.65011172,0.000319,120]
[400043045,1767048651002,-846.86999935,0.000319,120]
[400043046,1767048651018,-5000.0,0.00031999,15]
[400043047,1767048651029,-1000.0,0.00032,9]
[400043048,1767048651038,-1017.0,0.00032,7]
[400043049,1767048651049,-5000.0,0.00032026,15]
[400043050,1767048651059,-5000.0,0.00032053,15]
[400043051,1767048651069,-1655.77,0.00032054,32]
[400043052,1767048651079,-2011.91929745,0.00032146,2]
[400043053,1767048651088,-338.2114975,0.00032149,2]
[400043054,1767048651097,-55438.9384229,0.000322,2]
[400043055,1767048651108,-2600.3767643,0.000322,2]
[400043056,1767048651117,-151.0,0.000322,31]
[400043057,1767048651126,-151.0,0.000322,31]
[400043058,1767048651137,-151.0,0.000322,31]
[400043059,1767048651146,-151.0,0.000322,31]
[400043060,1767048651157,-151.0,0.000322,31]
[400043061,1767048651167,-151.0,0.000322,31]
[400043062,1767048651177,-151.0,0.000322,31]
[400043063,1767048651186,-151.0,0.000322,31]
[400043064,1767048651196,-151.0,0.000322,31]
[400043065,1767048651204,-227.262837,0.000322,31]
[400043066,1767048651216,-151.0,0.000322,31]
[400043067,1767048651226,-151.0,0.000322,31]
[400043068,1767048651236,-151.0,0.000322,31]
[400043069,1767048651247,-151.0,0.000322,31]
[400043070,1767048651257,-155.416884,0.000322,31]
[400043071,1767048651267,-151.0,0.000322,31]
[400043072,1767048651276,-253.301123,0.000322,31]
[400043073,1767048651285,-253.301123,0.000322,31]
[400043074,1767048651295,-151.0,0.000322,31]
[400043075,1767048651307,-253.301123,0.000322,31]
[400043076,1767048651317,-151.0,0.000322,31]
[400043077,1767048651328,-253.301123,0.000322,31]
[400043078,1767048651337,-151.0,0.000322,31]
[400043079,1767048651346,-151.0,0.000322,31]
[400043080,1767048651355,-151.0,0.000322,31]
[400043081,1767048651364,-185.798208,0.000322,31]
[400043082,1767048651374,-151.0,0.000322,31]
[400043083,1767048651383,-151.0,0.000322,31]
[400043084,1767048651392,-151.0,0.000322,31]
[400043085,1767048651402,-151.0,0.000322,31]
[400043086,1767048651411,-204.630048,0.000322,31]
[400043087,1767048651420,-151.0,0.000322,31]
[400043088,1767048651429,-226.600285,0.000322,31]
[400043089,1767048651439,-151.0,0.000322,31]
[400043090,1767048651447,-151.0,0.000322,30]
[400043091,1767048651460,-151.0,0.000322,30]
[400043092,1767048651469,-249.44556,0.000322,31]
[400043093,1767048651478,-151.0,0.000322,31]
[400043094,1767048651487,-403.601255,0.000322,31]
[400043095,1767048651497,-403.601255,0.000322,31]
[400043096,1767048651506,-403.601255,0.000322,31]
[400043097,1767048651515,-403.601255,0.000322,31]
[400043098,1767048651525,-5000.0,0.00032231,10]
[400043099,1767048651534,-5000.0,0.00032279,3]
[400043100,1767048651543,-716.70115333,0.00032281,30]
[400043101,1767048651552,-5000.0,0.00032299,14]
[400043102,1767048651562,-1050.0,0.00032329,5]
[400043103,1767048651571,-262.001019,0.00032329,31]
[400043104,1767048651580,-151.0,0.00032329,31]
[400043105,1767048651590,-151.2146,0.00032329,2]
[400043106,1767048651599,-151.0,0.00032329,31]
[400043107,1767048651608,-298.968903,0.00032329,31]
[400043108,1767048651693,-220.073602,0.00032329,31]
[400043109,1767048651703,-2966.412199,0.00032329,28]
[400043110,1767048651713,-151.0,0.00032329,31]
[400043111,1767048651722,-2966.412199,0.00032329,28]
[400043112,1767048651732,-2966.412199,0.00032329,28]
[400043113,1767048651742,-157.035377,0.00032329,31]
[400043114,1767048651752,-2966.412199,0.00032329,28]
[400043115,1767048651763,-151.0,0.00032329,31]
[400043116,1767048651772,-5000.0,0.00032399,7]
[400043117,1767048651783,-11370.66,0.000324,2]
[400043118,1767048651793,-5000.0,0.00032409,15]
[400043119,1767048651802,-201.66,0.00032424,7]
[400043120,1767048651811,-5000.0,0.00032436,2]
[400043121,1767048651820,-247.4,0.00032437,5]
[400043122,1767048651829,-290.92683,0.00032499,31]
[400043123,1767048651840,-153.304838,0.00032499,31]
[400043124,1767048651850,-151.0,0.00032499,31]
[400043125,1767048651862,-151.0,0.00032499,31]
[400043126,1767048651873,-151.0,0.00032499,31]
[400043127,1767048651883,-151.0,0.00032499,31]
[400043128,1767048651893,-151.0,0.00032499,31]
[400043129,1767048651902,-151.0,0.00032499,31]
[400043130,1767048651911,-167.905055,0.00032499,31]
[400043131,1767048651922,-151.0,0.00032499,31]
[400043132,1767048651932,-983.498428,0.00032499,31]
[400043133,1767048651942,-983.498428,0.00032499,31]
[400043134,1767048651952,-983.498428,0.00032499,31]
[400043135,1767048651961,-983.498428,0.00032499,31]
[400043136,1767048651971,-151.0,0.00032499,31]
[400043137,1767048651980,-151.0,0.00032499,31]
[400043138,1767048651990,-151.0,0.00032499,31]
[400043139,1767048652001,-151.0,0.00032499,31]
[400043140,1767048652009,-209.378092,0.00032499,31]
[400043141,1767048652018,-209.378092,0.00032499,31]
[400043142,1767048652027,-209.378092,0.00032499,31]
[400043143,1767048652035,-209.378092,0.00032499,31]
[400043144,1767048652044,-172.576134,0.00032499,31]
[400043145,1767048652053,-5000.0,0.00032499,5]
[400043146,1767048652061,-500.0,0.00032499,5]
[400043147,1767048652070,-500.0,0.00032499,5]
[400043148,1767048652079,-500.0,0.00032499,5]
[400043149,1767048652088,-500.0,0.00032499,5]
[400043150,1767048652097,-500.0,0.00032499,5]
[400043151,1767048652106,-500.0,0.00032499,5]
[400043152,1767048652115,-500.0,0.00032499,5]
[400043153,1767048652124,-500.0,0.00032499,5]
[400043154,1767048652133,-500.0,0.00032499,5]
[400043155,1767048652141,-500.0,0.00032499,5]
[400043156,1767048652150,-500.0,0.00032499,5]
[400043157,1767048652159,-496.47127164,0.00032499,5]
[400043158,1767048652168,-500.0,0.00032499,5]
[400043159,1767048652177,-514.84070869,0.00032499,5]
[400043160,1767048652186,-500.0,0.00032499,5]
[400043161,1767048652195,-533.88981491,0.00032499,5]
[400043162,1767048652204,-500.0,0.00032499,5]
[400043163,1767048652213,-553.64373807,0.00032499,5]
[400043164,1767048652222,-500.0,0.00032499,5]
[400043165,1767048652231,-574.12855637,0.00032499,5]
[400043166,1767048652240,-595.37131296,0.00032499,5]
[400043167,1767048652249,-500.0,0.00032499,5]
[400043168,1767048652258,-2398.4119403,0.00032499,5]
[400043169,1767048652267,-617.40005154,0.00032499,5]
[400043170,1767048652276,-2487.15318209,0.00032499,5]
[400043171,1767048652285,-640.24385345,0.00032499,5]
[400043172,1767048652294,-2579.17784983,0.00032499,5]
[400043173,1767048652303,-663.93287602,0.00032499,5]
[400043174,1767048652312,-2674.60743027,0.00032499,5]
[400043175,1767048652321,-643.34624238,0.00032499,5]
[400043176,1767048652330,-213.32402492,0.00032499,5]
[400043177,1767048652339,-4654.08854581,0.00032499,5]
[400043178,1767048652348,-3396.87224642,0.00032499,5]
[400043179,1767048652357,-806.92936716,0.00032499,5]
[400043180,1767048652366,-185.85536852,0.00032499,5]
[400043181,1767048652375,-925.19755054,0.00032499,5]
[400043182,1767048652384,-388002.84499206,0.000325,5]
[400043183,1767048652393,-7073.22,0.000325,5]
[400043184,1767048652402,-456.64806,0.000325,120]
[400043185,1767048652411,-1383.65806,0.000325,120]
[400043186,1767048652419,-256.64806,0.000325,120]
[400043187,1767048652428,-461.21935,0.000325,120]
[400043188,1767048652437,-454.12303575,0.000325,14]
[400043189,1767048652447,-155.0,0.000325,7]
[400043190,1767048652456,-155.0,0.000325,7]
[400043191,1767048652474,-155.0,0.000325,7]
[400043192,1767048652492,-155.0,0.000325,7]
[400043193,1767048652505,-155.0,0.000325,7]
[400043194,1767048652518,-171.63752996,0.000325,7]
[400043195,1767048652533,-292.0,0.000325,5]
[400043196,1767048652547,-383.65805,0.000325,120]
[400043197,1767048652560,-152.0,0.000325,7]
[400043198,1767048652575,-346.0,0.000325,7]
[400043199,1767048652590,-152.0,0.000325,7]
[400043200,1767048652604,-326.17108693,0.000325,7]
[400043201,1767048652617,-152.0,0.000325,7]
[400043202,1767048652630,-152.0,0.000325,7]
[400043203,1767048652644,-152.0,0.000325,7]
[400043204,1767048652658,-152.0,0.000325,7]
[400043205,1767048652670,-152.0,0.000325,7]
[400043206,1767048652682,-152.0,0.000325,7]
[400043207,1767048652695,-152.0,0.000325,7]
[400043208,1767048652708,-152.0,0.000325,7]
[400043209,1767048652722,-152.0,0.000325,7]
[400043210,1767048652736,-152.0,0.000325,7]
[400043211,1767048652751,-152.0,0.000325,7]
[400043212,1767048652765,-152.0,0.000325,7]
[400043213,1767048652776,-1000.0,0.000325,9]
[400043214,1767048652787,-152.0,0.000325,7]
[400043215,1767048652798,-152.0,0.000325,7]
[400043216,1767048652813,-152.0,0.000325,7]
[400043217,1767048652827,-152.0,0.000325,7]
[400043218,1767048652837,-264.0,0.000325,7]
[400043219,1767048652849,-727.1241338,0.000325,14]
[400043220,1767048652863,-2156.0,0.00032513,2]
[400043221,1767048652874,-424.346,0.00032513,2]
[400043222,1767048652885,-1359.0,0.00032513,2]
[400043223,1767048652896,-1146.72,0.000326,7]
[400043224,1767048652909,-1655.77,0.00032602,33]
[400043225,1767048652921,-774.0,0.000327,18]
[400043226,1767048652932,-308.4715212,0.00032712,30]
[400043227,1767048652944,-204.8804204,0.00032712,30]
[400043228,1767048652956,-303.3053281,0.00032712,30]
[400043229,1767048652969,-303.3053281,0.00032712,30]
[400043230,1767048652980,-303.3053281,0.00032712,30]
[400043231,1767048652993,-303.3053281,0.00032712,30]
[400043232,1767048653006,-168.57562721,0.0003274,30]
[400043233,1767048653018,-716.70115333,0.0003282,30]
[400043234,1767048653031,-5612.13242263,0.00032876,7]
[400043235,1767048653043,-1000.0,0.00032876,120]
[400043236,1767048653056,-156.794228,0.00032876,31]
[400043237,1767048653069,-151.0,0.00032876,31]
[400043238,1767048653081,-151.0,0.00032876,31]
[400043239,1767048653092,-151.0,0.00032876,31]
[400043240,1767048653105,-151.0,0.00032876,31]
[400043241,1767048653117,-574.99,0.00032876,2]
[400043242,1767048653129,-574.99,0.00032876,2]
[400043243,1767048653142,-574.99,0.00032876,2]
[400043244,1767048653153,-574.99,0.00032876,2]
[400043245,1767048653166,-574.99,0.00032876,2]
[400043246,1767048653179,-574.99,0.00032876,2]
[400043247,1767048653191,-574.99,0.00032876,2]
[400043248,1767048653203,-574.99,0.00032876,2]
[400043249,1767048653214,-574.99,0.00032876,2]
[400043250,1767048653227,-574.99,0.00032876,2]
[400043251,1767048653240,-574.99,0.00032876,2]
[400043252,1767048653251,-574.99,0.00032876,2]
[400043253,1767048653263,-574.99,0.00032876,2]
[400043254,1767048653275,-574.99,0.00032876,2]
[400043255,1767048653287,-574.99,0.00032876,2]
[400043256,1767048653300,-574.99,0.00032876,2]
[400043257,1767048653312,-574.99,0.00032876,2]
[400043258,1767048653326,-574.99,0.00032876,2]
[400043259,1767048653338,-574.99,0.00032876,2]
[400043260,1767048653350,-205.50333784,0.00032876,2]
[400043261,1767048653363,-574.99,0.00032876,2]
[400043262,1767048653375,-574.99,0.00032876,2]
[400043263,1767048653388,-574.99,0.00032876,2]
[400043264,1767048653401,-574.99,0.00032876,2]
[400043265,1767048653414,-575.12853152,0.00032876,2]
[400043266,1767048653426,-500.0,0.00032876,2]
[400043267,1767048653438,-500.0,0.00032876,2]
[400043268,1767048653453,-521.96696019,0.00032876,2]
[400043269,1767048653467,-500.0,0.00032876,2]
[400043270,1767048653480,-500.0,0.00032876,2]
[400043271,1767048653493,-500.0,0.00032876,2]
[400043272,1767048653627,-500.0,0.00032876,2]
[400043273,1767048653642,-500.0,0.00032876,2]
[400043274,1767048653653,-245.03123992,0.00032876,2]
[400043275,1767048653663,-500.0,0.00032876,2]
[400043276,1767048653673,-500.0,0.00032876,2]
[400043277,1767048653683,-500.0,0.00032876,2]
[400043278,1767048653693,-500.0,0.00032876,2]
[400043279,1767048653703,-500.0,0.00032876,2]
[400043280,1767048653714,-500.0,0.00032876,2]
[400043281,1767048653724,-500.0,0.00032876,2]
[400043282,1767048653735,-500.0,0.00032876,2]
[400043283,1767048653745,-500.0,0.00032876,2]
[400043284,1767048653754,-500.0,0.00032876,2]
[400043285,1767048653764,-500.0,0.00032876,2]
[400043286,1767048653774,-500.0,0.00032876,2]
[400043287,1767048653783,-500.0,0.00032876,2]
[400043288,1767048653793,-651.6248199,0.00032876,2]
[400043289,1767048653803,-500.0,0.00032876,2]
[400043290,1767048653813,-500.0,0.00032876,2]
[400043291,1767048653822,-500.0,0.00032876,2]
[400043292,1767048653833,-500.0,0.00032876,2]
[400043293,1767048653843,-500.0,0.00032876,2]
[400043294,1767048653853,-500.0,0.00032876,2]
[400043295,1767048653864,-340.70547947,0.00032876,2]
[400043296,1767048653874,-500.0,0.00032876,2]
[400043297,1767048653884,-500.0,0.00032876,2]
[400043298,1767048653895,-500.0,0.00032876,2]
[400043299,1767048653905,-500.0,0.00032876,2]
[400043300,1767048653916,-500.0,0.00032876,2]
[400043301,1767048653926,-183.58788443,0.00032876,2]
[400043302,1767048653936,-161.3510847,0.00032876,2]
[400043303,1767048653946,-168.12016024,0.00032876,2]
[400043304,1767048653955,-270.3168743,0.00032876,2]
[400043305,1767048653965,-482.21954769,0.00032876,2]
[400043306,1767048653975,-534.11,0.00032877,10]
[400043307,1767048653985,-500.0,0.00032877,8]
[400043308,1767048653995,-526.11126252,0.00032877,8]
[400043309,1767048654004,-107.03330394,0.00032877,10]
[400043310,1767048654135,-297.08773857,0.00032877,10]
[400043311,1767048654239,5000.0,0.00013172,2]
[400043312,1767048654262,-177.0,0.0001556,2]
[400043313,1767048654271,-204.0,0.0001756,2]
[400043314,1767048654281,-231.0,0.0001956,2]
[400043315,1767048654293,-258.0,0.0002156,2]
[400043316,1767048654303,-285.0,0.0002356,2]
[400043317,1767048654312,-570.17,0.00025479,2]
[400043318,1767048654321,-108.17169242,0.00025753,2]
[400043319,1767048654332,-461.99830758,0.00025753,2]
[400043320,1767048654341,-570.17,0.00026027,2]
[400043321,1767048654350,-570.17,0.00026301,2]
[400043322,1767048654359,-570.17,0.00026575,2]
[400043323,1767048654368,-570.17,0.00026849,2]
[400043324,1767048654378,-570.17,0.00027123,2]
[400043325,1767048654387,-570.17,0.00027397,2]
[400043326,1767048654397,-570.17,0.00027671,2]
[400043327,1767048654406,-1201.05895749,0.00032877,10]
[400043328,1767048654415,-2506.22,0.00032877,10]
[400043329,1767048654425,-2088.52,0.00032877,10]
[400043330,1767048654434,-1740.43,0.00032877,10]
[400043331,1767048654443,-500.0,0.00032877,7]
[400043332,1767048654453,-500.0,0.00032877,7]
[400043333,1767048654465,-500.0,0.00032877,10]
[400043334,1767048654474,-500.0,0.00032877,7]
[400043335,1767048654483,-500.0,0.00032877,10]
[400043336,1767048654492,-500.0,0.00032877,2]
[400043337,1767048654501,-500.0,0.00032877,7]
[400043338,1767048654511,-500.0,0.00032877,2]
[400043339,1767048654520,-500.0,0.00032877,7]
[400043340,1767048654532,-500.0,0.00032877,2]
[400043341,1767048654544,-500.0,0.00032877,7]
[400043342,1767048654554,-500.0,0.00032877,7]
[400043343,1767048654564,-500.0,0.00032877,7]
[400043344,1767048654574,-1150.0,0.00032877,5]
[400043345,1767048654584,-518.29,0.00032877,120]
[400043346,1767048654594,-151.0,0.00032877,31]
[400043347,1767048654605,-151.0,0.00032877,7]
[400043348,1767048654614,-500.0,0.00032877,7]
[400043349,1767048654624,-500.0,0.00032877,7]
[400043350,1767048654634,-500.0,0.00032877,7]
[400043351,1767048654643,-500.0,0.00032877,7]
[400043352,1767048654652,-500.0,0.00032877,7]
[400043353,1767048654661,-500.0,0.00032877,7]
[400043354,1767048654670,-344.24257771,0.00032877,7]
[400043355,1767048654679,-500.0,0.00032877,7]
[400043356,1767048654688,-500.0,0.00032877,7]
[400043357,1767048654698,-482.69361975,0.00032877,7]
[400043358,1767048654707,-790.37664074,0.000329,120]
[400043359,1767048654716,-303.85405542,0.000329,120]
[400043360,1767048654725,-738.34214525,0.000329,120]
[400043361,1767048654735,-398.37917181,0.000329,120]
[400043362,1767048654744,-722.78806096,0.000329,120]
[400043363,1767048654753,-635.64130618,0.000329,120]
[400043364,1767048654763,-846.86999935,0.000329,120]
[400043365,1767048654773,-474.63054452,0.00032904,120]
[400043366,1767048654783,-1000.0,0.00032933,30]
[400043367,1767048654792,-1000.0,0.00032933,30]
[400043368,1767048654802,-465.0,0.00032933,30]
[400043369,1767048654811,-39844.19406133,0.00033,2]
[400043370,1767048654822,-36392.33639147,0.00033,2]
[400043371,1767048654995,-312.0,0.0002556,2]
[400043372,1767048655004,-339.0,0.0002756,2]
[400043373,1767048655013,-570.17,0.00027945,2]
[400043374,1767048655022,-570.25960919,0.00028219,2]
[400043375,1767048655031,-289.32039124,0.0002956,2]
[400043376,1767048655043,-76.67960876,0.0002956,2]
[400043377,1767048655053,-393.0,0.0003156,2]
[400043378,1767048655062,-1985.70408258,0.00033,2]
[400043379,1767048655108,-5564.56449701,0.00033,2]
[400043380,1767048655117,-1758.10141272,0.00033,4]
[400043381,1767048655126,-8218.81736236,0.00033,20]
[400043382,1767048655137,-307982.4105907,0.00033,20]
[400043383,1767048655148,-868.82247036,0.00033,20]
[400043384,1767048790863,218.53328265,0.00025817,120]
[400043385,1767048880469,4502.1938627,0.00013108,2]
[400043386,1767049235049,314.28171,0.00027,120]
[400043387,1767049235492,314.28171,0.000281,120]
[400043388,1767049481746,-151.62170091,0.00013447,2]
[400043405,1767049832146,-858.12873,0.00013584,2]
[400043413,1767049832315,-4141.87127,0.00013584,2]
[400043414,1767049832325,-613.0,0.00013584,2]
[400043415,1767049832334,-1676.71721336,0.000139,2]
[400043416,1767049832343,-223.50937198,0.0001393,2]
[400043417,1767049832353,-500.0,0.0001393,2]
[400043418,1767049832362,-500.0,0.0001393,2]
[400043419,1767049832372,-636.83402439,0.0001393,2]
[400043420,1767049832382,-300.0,0.0001393,2]
[400043421,1767049832392,-300.0,0.0001393,2]
[400043422,1767049832402,-300.0,0.0001393,2]
[400043423,1767049832413,-21915.95378281,0.00013931,2]
[400043437,1767049838307,-500.0,0.0001393,2]
[400043438,1767049838317,-500.0,0.0001393,2]
[400043439,1767049838326,-371.02402254,0.0001393,2]
[400043440,1767049838336,-500.0,0.0001393,2]
[400043441,1767049838346,-500.0,0.0001393,2]
[400043442,1767049838355,-500.0,0.0001393,2]
[400043443,1767049838365,-500.0,0.0001393,2]
[400043444,1767049838374,-500.0,0.0001393,2]
[400043445,1767049838384,-500.0,0.0001393,2]